fUSD/lending_fUSD_20260516
["ID","MTS","AMOUNT","RATE_DAILY","PERIOD"]
[422392189,1778922638000,-500.0,0.00014999,2]
[422392196,1778922638000,-500.0,0.00014999,2]
[422392195,1778922638000,-500.0,0.00014999,2]
[422392159,1778922638000,-500.0,0.00014999,2]
[422392193,1778922638000,-500.0,0.00014999,2]
[422392197,1778922638000,-500.0,0.00014999,2]
[422392172,1778922638000,-500.0,0.00014999,2]
[422392161,1778922638000,-500.0,0.00014999,2]
[422392144,1778922638000,-500.0,0.00014999,2]
[422392156,1778922638000,-500.0,0.00014999,2]
[422392192,1778922638000,-500.0,0.00014999,2]
[422392127,1778922638000,-131776.08224228,0.00014916,2]
[422392130,1778922638000,-512687.7841693,0.00014916,2]
[422392128,1778922638000,-7855.9703459,0.00014916,2]
[422392129,1778922638000,-7813.7935689,0.00014916,2]
[422392131,1778922638000,-500.0,0.00014999,2]
[422392132,1778922638000,-500.0,0.00014999,2]
[422392133,1778922638000,-500.0,0.00014999,2]
[422392134,1778922638000,-500.0,0.00014999,2]
[422392135,1778922638000,-500.0,0.00014999,2]
[422392136,1778922638000,-500.0,0.00014999,2]
[422392157,1778922638000,-500.0,0.00014999,2]
[422392140,1778922638000,-508.38766567,0.00014999,2]
[422392138,1778922638000,-500.0,0.00014999,2]
[422392150,1778922638000,-500.0,0.00014999,2]
[422392139,1778922638000,-158.93919027,0.00014999,2]
[422392151,1778922638000,-500.0,0.00014999,2]
[422392142,1778922638000,-500.0,0.00014999,2]
[422392148,1778922638000,-500.0,0.00014999,2]
[422392146,1778922638000,-500.0,0.00014999,2]
[422392153,1778922638000,-500.0,0.00014999,2]
[422392152,1778922638000,-500.0,0.00014999,2]
[422392154,1778922638000,-500.0,0.00014999,2]
[422392155,1778922638000,-500.0,0.00014999,2]
[422392137,1778922638000,-500.0,0.00014999,2]
[422392199,1778922638000,-500.0,0.00014999,2]
[422392162,1778922638000,-500.0,0.00014999,2]
[422392200,1778922638000,-500.0,0.00014999,2]
[422392228,1778922638000,-199.53926711,0.00014999,2]
[422392224,1778922638000,-500.0,0.00014999,2]
[422392230,1778922638000,-500.0,0.00014999,2]
[422392231,1778922638000,-500.0,0.00014999,2]
[422392233,1778922638000,-588.67332681,0.00014999,2]
[422392232,1778922638000,-500.0,0.00014999,2]
[422392235,1778922638000,-500.0,0.00014999,2]
[422392234,1778922638000,-500.0,0.00014999,2]
[422392236,1778922638000,-500.0,0.00014999,2]
[422392237,1778922638000,-500.0,0.00014999,2]
[422392238,1778922638000,-500.0,0.00014999,2]
[422392239,1778922638000,-500.0,0.00014999,2]
[422392241,1778922638000,-500.0,0.00014999,2]
[422392240,1778922638000,-500.0,0.00014999,2]
[422392245,1778922638000,-500.0,0.00014999,2]
[422392244,1778922638000,-500.0,0.00014999,2]
[422392242,1778922638000,-500.0,0.00014999,2]
[422392246,1778922638000,-500.0,0.00014999,2]
[422392247,1778922638000,-500.0,0.00014999,2]
[422392248,1778922638000,-500.0,0.00014999,2]
[422392249,1778922638000,-500.0,0.00014999,2]
[422392250,1778922638000,-500.0,0.00014999,2]
[422392251,1778922638000,-500.0,0.00014999,2]
[422392229,1778922638000,-500.0,0.00014999,2]
[422392227,1778922638000,-500.0,0.00014999,2]
[422392243,1778922638000,-500.0,0.00014999,2]
[422392225,1778922638000,-500.0,0.00014999,2]
[422392226,1778922638000,-500.0,0.00014999,2]
[422392201,1778922638000,-500.0,0.00014999,2]
[422392205,1778922638000,-500.0,0.00014999,2]
[422392203,1778922638000,-500.0,0.00014999,2]
[422392202,1778922638000,-500.0,0.00014999,2]
[422392204,1778922638000,-500.0,0.00014999,2]
[422392206,1778922638000,-500.0,0.00014999,2]
[422392209,1778922638000,-500.0,0.00014999,2]
[422392210,1778922638000,-500.0,0.00014999,2]
[422392208,1778922638000,-500.0,0.00014999,2]
[422392207,1778922638000,-500.0,0.00014999,2]
[422392211,1778922638000,-500.0,0.00014999,2]
[422392198,1778922638000,-500.0,0.00014999,2]
[422392214,1778922638000,-500.0,0.00014999,2]
[422392212,1778922638000,-500.0,0.00014999,2]
[422392252,1778922638000,-500.0,0.00014999,2]
[422392222,1778922638000,-386.73326808,0.00014999,2]
[422392220,1778922638000,-500.0,0.00014999,2]
[422392219,1778922638000,-500.0,0.00014999,2]
[422392221,1778922638000,-500.0,0.00014999,2]
[422392216,1778922638000,-500.0,0.00014999,2]
[422392217,1778922638000,-500.0,0.00014999,2]
[422392215,1778922638000,-500.0,0.00014999,2]
[422392213,1778922638000,-500.0,0.00014999,2]
[422392218,1778922638000,-500.0,0.00014999,2]
[422392223,1778922638000,-500.0,0.00014999,2]
[422392258,1778922639000,-311.98948368,0.00015,2]
[422392260,1778922639000,-150.0,0.00015,2]
[422392254,1778922639000,-532.0,0.00015,5]
[422392257,1778922639000,-1270.0,0.00015,2]
[422392255,1778922639000,-423.0,0.00015,5]
[422392256,1778922639000,-284.625,0.00015,2]
[422392253,1778922639000,-300.0,0.00014999,2]
[422392261,1778922639000,-150.0,0.00015,2]
[422392259,1778922639000,-1223.0,0.00015,2]
[422392267,1778922639000,-964.67878604,0.00015,2]
[422392266,1778922639000,-650.24869359,0.00015,2]
[422392262,1778922639000,-3631.0,0.00015,2]
[422392265,1778922639000,-4417.74449147,0.00015,2]
[422392264,1778922639000,-2469469.50543837,0.00015,2]
[422392263,1778922639000,-6054.0,0.00015,2]
[422392270,1778922640000,-46344.3170741,0.00015,2]
[422392271,1778922640000,-2775.96635846,0.00015,2]
[422392269,1778922640000,-4471.7421609,0.00015,2]
[422392283,1778922643000,-3915.05411839,0.00015,2]
[422392282,1778922643000,-0.2188082,0.00015,2]
[422392284,1778922643000,-982.07925712,0.00015,2]
[422392285,1778922643000,-948.99511889,0.00015,2]
[422392288,1778922643000,-343.10411232,0.00015,2]
[422392289,1778922643000,-1141.95986912,0.00015,2]
[422392290,1778922643000,-19004.6932728,0.00015,2]
[422392291,1778922643000,-250.0,0.00015,2]
[422392286,1778922643000,-1220.52685329,0.00015,2]
[422392287,1778922643000,-2147.57457912,0.00015,2]
[422392497,1778922646000,-508.89411053,0.00015,2]
[422392496,1778922646000,-63003.2945208,0.00015,2]
[422392495,1778922646000,-417.0,0.00015,2]
[422392601,1778922662000,224.25,0.00023,120]
[422392600,1778922662000,171.62,0.00021,120]
[422392599,1778922662000,259.72,0.000271,120]
[422392604,1778922672000,500.0,0.00028767,120]
[422392603,1778922672000,500.0,0.00028767,120]
[422392602,1778922672000,500.0,0.00028767,120]
[422392605,1778922673000,500.0,0.00028767,120]
[422392606,1778922673000,500.0,0.00028767,120]
[422392607,1778922673000,508.3153958,0.00028767,120]
[422392608,1778922691000,297.93419777,0.00026014,120]
[422392609,1778922761000,297.23036721,0.00026187,120]
[422392610,1778922783000,335.68,0.00015,120]
[422392611,1778922793000,401.00856568,0.00026187,120]
[422392612,1778922798000,500.0,0.00025932,120]
[422392614,1778922799000,500.0,0.00028521,120]
[422392613,1778922799000,500.0,0.00027141,120]
[422392615,1778922800000,500.0,0.00029902,120]
[422392617,1778922801000,156.91,7.908e-05,2]
[422392616,1778922801000,156.91,7.214e-05,2]
[422392618,1778922802000,156.91,8.601e-05,2]
[422392620,1778922802000,156.91,9.987e-05,2]
[422392619,1778922802000,156.91,9.294e-05,2]
[422392621,1778922884000,533.01,0.00030137,120]
[422392622,1778922909000,381.0,0.00028248,120]
[422392623,1778922912000,381.0,0.0002966,120]
[422392624,1778922974000,302.12,0.00015,120]
[422392625,1778922984000,336.7,0.0003013,120]
[422392626,1778923025000,336.7,0.0003013,120]
[422392627,1778923059000,400.0,0.00030136,120]
[422392628,1778923164000,271.9,0.00015,120]
[422392629,1778923207000,228.0,0.00028622,120]
[422392630,1778923208000,228.0,0.00030053,120]
[422392664,1778923354000,244.71,0.00015,120]
[422392665,1778923395000,500.0,0.00030035,120]
[422392667,1778923511000,160.0,0.00028768,120]
[422392668,1778923544000,220.24,0.00015,120]
[422392669,1778923551000,152.0,9.381e-05,2]
[422392673,1778923573000,215.03,0.00021,120]
[422392672,1778923573000,301.75,0.00021,120]
[422392671,1778923573000,394.11,0.00023,120]
[422392670,1778923573000,460.95,0.000271,120]
[422392677,1778923733000,198.22,0.00015,120]
[422392678,1778923762000,533.44,6.837e-05,2]
[422392680,1778923762000,533.44,7.529e-05,2]
[422392679,1778923762000,533.44,7.183e-05,2]
[422392685,1778923763000,533.44,9.258e-05,2]
[422392684,1778923763000,533.44,8.912e-05,2]
[422392683,1778923763000,533.44,8.566e-05,2]
[422392682,1778923763000,533.44,8.22e-05,2]
[422392681,1778923763000,533.44,7.875e-05,2]
[422392687,1778923764000,533.44,9.949e-05,2]
[422392686,1778923764000,533.44,9.603e-05,2]
[422392689,1778923809000,167.0,0.00028204,120]
[422392690,1778923810000,167.0,0.00029614,120]
[422392698,1778923832000,-2470.66074268,0.00010674,2]
[422392724,1778923832000,-1123.05,0.00013601,2]
[422392719,1778923832000,-310.78,0.00013427,2]
[422392717,1778923832000,-533.44,0.00013407,2]
[422392720,1778923832000,-150.0,0.00013488,2]
[422392721,1778923832000,-150.0,0.00013488,2]
[422392722,1778923832000,-150.0,0.00013488,2]
[422392723,1778923832000,-150.0,0.00013488,2]
[422392727,1778923832000,-165.5,0.00013699,2]
[422392716,1778923832000,-2000.0,0.000134,2]
[422392730,1778923832000,-203.18,0.00013747,2]
[422392739,1778923832000,-203.18,0.00014082,2]
[422392738,1778923832000,-2312.0,0.0001404,2]
[422392729,1778923832000,-547.0,0.00013726,2]
[422392731,1778923832000,-4219.4,0.0001377,2]
[422392732,1778923832000,-150.0,0.00013787,2]
[422392737,1778923832000,-2312.0,0.0001404,2]
[422392733,1778923832000,-284.18,0.0001381,2]
[422392736,1778923832000,-163.0,0.0001404,2]
[422392728,1778923832000,-175.05,0.00013718,2]
[422392714,1778923832000,-2312.0,0.000134,2]
[422392726,1778923832000,-150.0,0.00013666,2]
[422392725,1778923832000,-250.16,0.00013663,2]
[422392699,1778923832000,-175.05,0.00010868,2]
[422392700,1778923832000,-533.44,0.00010986,2]
[422392696,1778923832000,-533.44,0.00010295,2]
[422392701,1778923832000,-533.44,0.00011332,2]
[422392702,1778923832000,-533.44,0.00011678,2]
[422392704,1778923832000,-533.44,0.00012024,2]
[422392703,1778923832000,-339.20673967,0.00011741,2]
[422392708,1778923832000,-533.44,0.00013061,2]
[422392705,1778923832000,-533.44,0.0001237,2]
[422392734,1778923832000,-161.13355918,0.0001382,3]
[422392706,1778923832000,-533.44,0.00012715,2]
[422392707,1778923832000,-1200.0,0.0001306,2]
[422392713,1778923832000,-2312.0,0.000134,2]
[422392709,1778923832000,-150.0,0.00013399,2]
[422392710,1778923832000,-623.75,0.000134,2]
[422392712,1778923832000,-2312.0,0.000134,2]
[422392711,1778923832000,-2312.0,0.000134,2]
[422392715,1778923832000,-2312.0,0.000134,2]
[422392718,1778923832000,-203.18,0.00013412,2]
[422392697,1778923832000,-533.44,0.00010641,2]
[422392735,1778923832000,-250.0,0.00014,2]
[422392771,1778923832000,-223.691567,0.000147,2]
[422392751,1778923832000,-150.0,0.00014387,2]
[422392767,1778923832000,-1741.956462,0.00014683,2]
[422392774,1778923832000,-274.85175229,0.00014747,2]
[422392766,1778923832000,-950.978231,0.00014683,2]
[422392775,1778923832000,-160.0,0.00014748,2]
[422392777,1778923832000,-345.001839,0.00014748,2]
[422392776,1778923832000,-252.500919,0.00014748,2]
[422392778,1778923832000,-203.18,0.00014753,2]
[422392769,1778923832000,-150.0,0.00014687,2]
[422392772,1778923832000,-1800.0,0.000147,5]
[422392773,1778923832000,-385.0,0.00014737,2]
[422392770,1778923832000,-238.73611073,0.000147,2]
[422392779,1778923832000,-160.0,0.00014757,2]
[422392780,1778923832000,-254.182749,0.00014757,2]
[422392782,1778923832000,-350.0,0.00014765,2]
[422392781,1778923832000,-348.365499,0.00014757,2]
[422392784,1778923832000,-2841.40978259,0.00014796,2]
[422392783,1778923832000,-163.75681402,0.00014766,2]
[422392785,1778923832000,-202.56694603,0.000148,2]
[422392741,1778923832000,-150.0,0.00014237,2]
[422392765,1778923832000,-160.0,0.00014683,2]
[422392763,1778923832000,-1946.262431,0.00014683,2]
[422392768,1778923832000,-184.860182,0.00014683,2]
[422392758,1778923832000,-2312.0,0.0001468,2]
[422392752,1778923832000,-700.0,0.000144,5]
[422392762,1778923832000,-1053.131215,0.00014683,2]
[422392753,1778923832000,-203.18,0.00014417,2]
[422392743,1778923832000,-300.0,0.000143,5]
[422392742,1778923832000,-150.0,0.00014237,2]
[422392740,1778923832000,-150.0,0.00014087,2]
[422392744,1778923832000,-350.0,0.00014305,2]
[422392745,1778923832000,-2312.0,0.0001436,2]
[422392749,1778923832000,-152.0,0.00014379,7]
[422392746,1778923832000,-2312.0,0.0001436,2]
[422392750,1778923832000,-165.5,0.00014384,2]
[422392748,1778923832000,-1680.0,0.00014366,2]
[422392759,1778923832000,-2312.0,0.0001468,2]
[422392747,1778923832000,-500.0,0.0001436,2]
[422392764,1778923832000,-166.249181,0.00014683,2]
[422392755,1778923832000,-255.0,0.00014511,2]
[422392760,1778923832000,-247.496297,0.00014683,2]
[422392761,1778923832000,-160.0,0.00014683,2]
[422392756,1778923832000,-1400.0,0.000146,5]
[422392754,1778923832000,-1000.0,0.000145,5]
[422392757,1778923832000,-500.0,0.00014634,2]
[422392814,1778923833000,-2841.40978256,0.00014888,2]
[422392818,1778923833000,-359.11751483,0.00014893,2]
[422392808,1778923833000,-562.8286,0.00014883,2]
[422392811,1778923833000,-359.11751483,0.00014885,2]
[422392815,1778923833000,-3828.30108952,0.00014889,2]
[422392813,1778923833000,-359.11751483,0.00014888,2]
[422392816,1778923833000,-359.11751483,0.0001489,2]
[422392809,1778923833000,-5000.0,0.00014883,2]
[422392812,1778923833000,-3828.30108952,0.00014887,2]
[422392827,1778923833000,-219.0,0.00014958,2]
[422392830,1778923833000,-2312.0,0.0001496,2]
[422392820,1778923833000,-359.11751483,0.00014898,2]
[422392824,1778923833000,-359.11751483,0.000149,2]
[422392822,1778923833000,-2841.40978256,0.000149,2]
[422392829,1778923833000,-193.9447139,0.0001496,2]
[422392828,1778923833000,-1880.0,0.00014959,2]
[422392821,1778923833000,-1500.0,0.000149,2]
[422392825,1778923833000,-503.40654584,0.00014908,2]
[422392810,1778923833000,-3828.30108952,0.00014885,2]
[422392831,1778923833000,-435.0,0.00014977,2]
[422392819,1778923833000,-359.11751483,0.00014895,2]
[422392791,1778923833000,-227.0,0.00014824,2]
[422392817,1778923833000,-3828.30108952,0.00014891,2]
[422392823,1778923833000,-300.0,0.000149,5]
[422392789,1778923833000,-29420.9634,0.00014816,2]
[422392792,1778923833000,-160.0,0.0001483,2]
[422392790,1778923833000,-2841.40978256,0.00014819,2]
[422392786,1778923833000,-1142.8168,0.000148,2]
[422392787,1778923833000,-300.0,0.000148,5]
[422392788,1778923833000,-2841.40978256,0.00014808,2]
[422392803,1778923833000,-5000.01,0.00014883,2]
[422392793,1778923833000,-228.592623,0.0001483,2]
[422392806,1778923833000,-33179.6252,0.00014883,2]
[422392804,1778923833000,-359.11751485,0.00014883,2]
[422392802,1778923833000,-200.0,0.0001488,2]
[422392795,1778923833000,-2841.40978256,0.00014831,2]
[422392798,1778923833000,-3788.32130728,0.00014854,2]
[422392800,1778923833000,-2841.40978256,0.00014877,2]
[422392801,1778923833000,-500.0,0.0001488,2]
[422392796,1778923833000,-2841.40978256,0.00014842,2]
[422392797,1778923833000,-2841.40978256,0.00014854,2]
[422392799,1778923833000,-2841.40978256,0.00014865,2]
[422392807,1778923833000,-2000.0,0.00014883,2]
[422392805,1778923833000,-3828.30108958,0.00014883,2]
[422392826,1778923833000,-163.75681402,0.00014922,2]
[422392794,1778923833000,-297.185246,0.0001483,2]
[422392843,1778923833000,-500.0,0.00014982,2]
[422392861,1778923833000,-3400.23510852,0.00014983,2]
[422392860,1778923833000,-955.8172656,0.00014983,2]
[422392858,1778923833000,-500.0,0.00014982,2]
[422392863,1778923833000,-1254.41808677,0.00014983,2]
[422392862,1778923833000,-141928.40192784,0.00014983,2]
[422392865,1778923833000,-458.44747329,0.00014983,2]
[422392864,1778923833000,-6267.33691747,0.00014983,2]
[422392866,1778923833000,-1063.57377001,0.00014983,2]
[422392867,1778923833000,-574.81083747,0.00014983,2]
[422392859,1778923833000,-150.0,0.00014982,2]
[422392869,1778923833000,-12287.82400493,0.00014983,2]
[422392871,1778923833000,-780.0,0.00014983,2]
[422392874,1778923833000,-14478.54283471,0.00014983,2]
[422392870,1778923833000,-258.00000003,0.00014983,2]
[422392873,1778923833000,-20353.45596461,0.00014983,2]
[422392875,1778923833000,-6313.09347693,0.00014983,2]
[422392872,1778923833000,-770.68,0.00014983,2]
[422392878,1778923833000,-3986.5962434,0.00014983,2]
[422392876,1778923833000,-2616.10127688,0.00014983,2]
[422392833,1778923833000,-500.0,0.00014982,2]
[422392868,1778923833000,-727.07592786,0.00014983,2]
[422392857,1778923833000,-500.0,0.00014982,2]
[422392877,1778923833000,-388.8323745,0.00014983,2]
[422392851,1778923833000,-500.0,0.00014982,2]
[422392856,1778923833000,-500.0,0.00014982,2]
[422392844,1778923833000,-507.39599137,0.00014982,2]
[422392845,1778923833000,-500.0,0.00014982,2]
[422392834,1778923833000,-500.0,0.00014982,2]
[422392832,1778923833000,-500.0,0.00014982,2]
[422392837,1778923833000,-500.0,0.00014982,2]
[422392842,1778923833000,-508.38766567,0.00014982,2]
[422392838,1778923833000,-500.0,0.00014982,2]
[422392839,1778923833000,-500.0,0.00014982,2]
[422392841,1778923833000,-500.0,0.00014982,2]
[422392836,1778923833000,-500.0,0.00014982,2]
[422392840,1778923833000,-500.0,0.00014982,2]
[422392852,1778923833000,-240.64619523,0.00014982,2]
[422392835,1778923833000,-509.28723594,0.00014982,2]
[422392853,1778923833000,-259.35380477,0.00014982,2]
[422392855,1778923833000,-500.0,0.00014982,2]
[422392854,1778923833000,-500.0,0.00014982,2]
[422392849,1778923833000,-500.0,0.00014982,2]
[422392848,1778923833000,-500.0,0.00014982,2]
[422392846,1778923833000,-500.0,0.00014982,2]
[422392847,1778923833000,-500.0,0.00014982,2]
[422392850,1778923833000,-500.0,0.00014982,2]
[422393054,1778923838000,-722.0,0.00014999,5]
[422393057,1778923838000,-199.53926711,0.00014999,2]
[422393059,1778923838000,-480.78469539,0.00014999,2]
[422393058,1778923838000,-500.0,0.00014999,2]
[422393064,1778923838000,-500.0,0.00014999,2]
[422393063,1778923838000,-500.0,0.00014999,2]
[422393062,1778923838000,-500.0,0.00014999,2]
[422393060,1778923838000,-500.0,0.00014999,2]
[422393074,1778923838000,-500.0,0.00014999,2]
[422393068,1778923838000,-500.0,0.00014999,2]
[422393066,1778923838000,-500.0,0.00014999,2]
[422393078,1778923838000,-611.79619842,0.00014999,2]
[422393072,1778923838000,-500.0,0.00014999,2]
[422393070,1778923838000,-500.0,0.00014999,2]
[422393056,1778923838000,-1084.73905795,0.00014999,5]
[422393085,1778923838000,-500.0,0.00014999,2]
[422393061,1778923838000,-509.1923885,0.00014999,2]
[422393055,1778923838000,-1084.73905795,0.00014999,5]
[422393043,1778923838000,-37409.6572642,0.00014983,2]
[422393049,1778923838000,-150.0,0.00014986,2]
[422393083,1778923838000,-500.0,0.00014999,2]
[422393035,1778923838000,-3828.30108952,0.00014892,2]
[422393034,1778923838000,-159.15740716,0.000147,2]
[422393036,1778923838000,-20397.92811941,0.00014983,2]
[422393037,1778923838000,-3614.82112995,0.00014983,2]
[422393039,1778923838000,-10752.89779378,0.00014983,2]
[422393038,1778923838000,-1041.50789886,0.00014983,2]
[422393042,1778923838000,-367209.49661867,0.00014983,2]
[422393053,1778923838000,-151.0,0.00014997,2]
[422393040,1778923838000,-4141.68819111,0.00014983,2]
[422393044,1778923838000,-2457.5504868,0.00014983,2]
[422393048,1778923838000,-150.01,0.00014985,2]
[422393046,1778923838000,-162327.5672522,0.00014983,2]
[422393045,1778923838000,-260.8589991,0.00014983,2]
[422393052,1778923838000,-350.0,0.00014993,2]
[422393047,1778923838000,-38749.2242802,0.00014983,2]
[422393051,1778923838000,-150.0,0.00014986,2]
[422393050,1778923838000,-150.0,0.00014986,2]
[422393041,1778923838000,-3828.30108952,0.00014894,2]
[422393076,1778923838000,-500.0,0.00014999,2]
[422393097,1778923838000,-500.0,0.00014999,2]
[422393081,1778923838000,-500.0,0.00014999,2]
[422393123,1778923838000,-500.0,0.00014999,2]
[422393119,1778923838000,-500.0,0.00014999,2]
[422393135,1778923838000,-500.0,0.00014999,2]
[422393137,1778923838000,-500.0,0.00014999,2]
[422393140,1778923838000,-500.0,0.00014999,2]
[422393150,1778923838000,-500.0,0.00014999,2]
[422393152,1778923838000,-500.0,0.00014999,2]
[422393144,1778923838000,-500.0,0.00014999,2]
[422393158,1778923838000,-500.0,0.00014999,2]
[422393154,1778923838000,-500.0,0.00014999,2]
[422393142,1778923838000,-500.0,0.00014999,2]
[422393148,1778923838000,-500.0,0.00014999,2]
[422393146,1778923838000,-500.0,0.00014999,2]
[422393065,1778923838000,-500.0,0.00014999,2]
[422393162,1778923838000,-500.0,0.00014999,2]
[422393160,1778923838000,-500.0,0.00014999,2]
[422393164,1778923838000,-500.0,0.00014999,2]
[422393117,1778923838000,-500.0,0.00014999,2]
[422393121,1778923838000,-500.0,0.00014999,2]
[422393156,1778923838000,-500.0,0.00014999,2]
[422393133,1778923838000,-500.0,0.00014999,2]
[422393131,1778923838000,-500.0,0.00014999,2]
[422393087,1778923838000,-500.0,0.00014999,2]
[422393091,1778923838000,-500.0,0.00014999,2]
[422393093,1778923838000,-500.0,0.00014999,2]
[422393095,1778923838000,-500.0,0.00014999,2]
[422393101,1778923838000,-500.0,0.00014999,2]
[422393109,1778923838000,-500.0,0.00014999,2]
[422393103,1778923838000,-500.0,0.00014999,2]
[422393089,1778923838000,-500.0,0.00014999,2]
[422393105,1778923838000,-500.0,0.00014999,2]
[422393107,1778923838000,-500.0,0.00014999,2]
[422393111,1778923838000,-500.0,0.00014999,2]
[422393113,1778923838000,-500.0,0.00014999,2]
[422393115,1778923838000,-500.0,0.00014999,2]
[422393125,1778923838000,-500.0,0.00014999,2]
[422393127,1778923838000,-500.0,0.00014999,2]
[422393099,1778923838000,-500.0,0.00014999,2]
[422393129,1778923838000,-500.0,0.00014999,2]
[422393199,1778923839000,-500.0,0.00014999,2]
[422393205,1778923839000,-500.0,0.00014999,2]
[422393209,1778923839000,-500.0,0.00014999,2]
[422393201,1778923839000,-500.0,0.00014999,2]
[422393211,1778923839000,-500.0,0.00014999,2]
[422393202,1778923839000,-500.0,0.00014999,2]
[422393225,1778923839000,-500.0,0.00014999,2]
[422393223,1778923839000,-500.0,0.00014999,2]
[422393227,1778923839000,-500.0,0.00014999,2]
[422393229,1778923839000,-621.13564933,0.00014999,2]
[422393219,1778923839000,-500.0,0.00014999,2]
[422393207,1778923839000,-500.0,0.00014999,2]
[422393213,1778923839000,-500.0,0.00014999,2]
[422393188,1778923839000,-500.0,0.00014999,2]
[422393182,1778923839000,-500.0,0.00014999,2]
[422393197,1778923839000,-500.0,0.00014999,2]
[422393192,1778923839000,-420.33629802,0.00014999,2]
[422393190,1778923839000,-500.0,0.00014999,2]
[422393186,1778923839000,-500.0,0.00014999,2]
[422393184,1778923839000,-282.51102364,0.00014999,2]
[422393172,1778923839000,-500.0,0.00014999,2]
[422393168,1778923839000,-500.0,0.00014999,2]
[422393170,1778923839000,-500.0,0.00014999,2]
[422393180,1778923839000,-500.0,0.00014999,2]
[422393181,1778923839000,-500.0,0.00014999,2]
[422393174,1778923839000,-500.0,0.00014999,2]
[422393176,1778923839000,-500.0,0.00014999,2]
[422393178,1778923839000,-500.0,0.00014999,2]
[422393166,1778923839000,-500.0,0.00014999,2]
[422393195,1778923839000,-500.0,0.00014999,2]
[422393231,1778923839000,-170.42309089,0.00014999,2]
[422393215,1778923839000,-500.0,0.00014999,2]
[422393217,1778923839000,-500.0,0.00014999,2]
[422393284,1778923839000,-1209.89554445,0.00015,2]
[422393282,1778923839000,-444.7192811,0.00015,2]
[422393279,1778923839000,-609.4475562,0.00015,2]
[422393277,1778923839000,-926.9057534,0.00015,2]
[422393265,1778923839000,-500.0,0.00014999,2]
[422393270,1778923839000,-300.0,0.00014999,2]
[422393272,1778923839000,-641.0,0.00015,5]
[422393273,1778923839000,-150.0,0.00015,2]
[422393276,1778923839000,-78063.93272942,0.00015,2]
[422393271,1778923839000,-300.0,0.00014999,2]
[422393274,1778923839000,-1180583.05578405,0.00015,2]
[422393275,1778923839000,-729242.7542347,0.00015,2]
[422393267,1778923839000,-500.0,0.00014999,2]
[422393269,1778923839000,-290.24887723,0.00014999,2]
[422393221,1778923839000,-500.0,0.00014999,2]
[422393261,1778923839000,-500.0,0.00014999,2]
[422393263,1778923839000,-500.0,0.00014999,2]
[422393233,1778923839000,-500.0,0.00014999,2]
[422393236,1778923839000,-500.0,0.00014999,2]
[422393250,1778923839000,-198.14496198,0.00014999,2]
[422393242,1778923839000,-500.0,0.00014999,2]
[422393240,1778923839000,-500.0,0.00014999,2]
[422393244,1778923839000,-500.0,0.00014999,2]
[422393252,1778923839000,-500.0,0.00014999,2]
[422393254,1778923839000,-500.0,0.00014999,2]
[422393257,1778923839000,-500.0,0.00014999,2]
[422393238,1778923839000,-500.0,0.00014999,2]